Cogmind - Beta 12 @@@ ROGUE MODE // 2023.05.29 @ 23:39:06 Player: Yallen Result: Self-destructed Performance ------------- Evolutions (1) 500 Regions Visited (2) 400 Robots Destroyed (18) 90 Value Destroyed (262) 262 Prototype IDs (0) 0 Alien Tech Used (0) 0 Bonus (0) 0 TOTAL SCORE: 1252 Bonus ------- None Cogmind --------- Core Integrity 259/400 Matter 235/300 Energy 125/125 System Corruption 0% Temperature Cool (0) Movement Core (100) Ox1 Location -9/Materials Parts ------- > --- POWER (1) -------- Light Ion Engine > --- PROPULSION (3) --- (None) > --- UTILITY (3) ------ Medium Storage Unit Weight Redist. System Utility Shielding > --- WEAPON (2) ------- Assault Rifle > --- INVENTORY (10) --- Light Ion Engine Light Ion Engine Light Ion Engine Utility Shielding Shield Generator EM Pulse Gun Medium Laser Light Assault Rifle Peak State ------------ > --- POWER ------------ Light Ion Engine > --- PROPULSION ------- Aluminum Leg Aluminum Leg > --- UTILITY ---------- Medium Storage Unit Weight Redist. System Utility Shielding > --- WEAPON ----------- Assault Rifle Light Assault Rifle > --- INVENTORY -------- Light Ion Engine Light Ion Engine Light Ion Engine Utility Shielding Shield Generator EM Pulse Gun Medium Laser Assault Rifle Light Assault Rifle [Rating: 10] Favorites ----------- Power Ion Engine Engine Ion Engine Propulsion Aluminum Leg Leg Aluminum Leg Utility Medium Storage Unit Device Weight Redist. System Storage Medium Storage Unit Protection Utility Shielding Weapon Assault Rifle Energy Gun Medium Laser Ballistic Gun Assault Rifle Build | -11 -10 -9 ------- Run | Jun Mat Mat Slots Evolved 2 | . . 2 Power . | . . . Propulsion 1 | . . 1 Utility 1 | . . 1 Weapon . | . . . Parts Attached 15 | 7 6 2 Power 2 | 1 1 . Engine 2 | 1 1 . Core . | . . . Reactor . | . . . Propulsion 3 | 2 1 . Treads . | . . . Leg 3 | 2 1 . Wheel . | . . . Hover . | . . . Flight . | . . . Utility 4 | 1 2 1 Device 1 | . 1 . Storage 2 | 1 1 . Processor . | . . . Hackware . | . . . Protection 1 | . . 1 Artifact . | . . . Weapon 6 | 3 2 1 Energy Gun 1 | 1 . . Energy Cannon . | . . . Ballistic Gun 5 | 2 2 1 Ballistic Cannon . | . . . Launcher . | . . . Special Weapon . | . . . Impact Weapon . | . . . Slashing Weapon . | . . . Piercing Weapon . | . . . Special Melee Weapon . | . . . Unidentified Prototypes . | . . . Parts Lost 4 | . . 4 Power . | . . . Propulsion 2 | . . 2 Utility . | . . . Weapon 2 | . . 2 Highest Loss Streak 4 | . . 4 To Critical Strikes . | . . . Average Slot Usage (%) 88 | . 89 83 Engine 13 | . 14 11 Leg 25 | . 27 19 Device 5 | . 4 11 Storage 13 | . 14 11 Protection 1 | . . 9 Ballistic Gun 26 | . 28 21 Naked Turns . | . . . Heaviest Build 18 | 13 18 17 Greatest Support 26 | 20 26 26 Greatest Overweight (x) 1 | . 1 1 Average Overweight (x) . | . . . Largest Inventory Capacity 10 | 8 10 10 Average Capacity 9 | 6 9 10 Most Carried 9 | 4 7 9 Average Carried 4 | 1 4 8 Final Capacity 10 | 8 10 10 Final Carried 8 | 2 6 8 Class Distribution -------------------- 100% | Mutant Dominant Class ---------------- Mutant | -10/Materials Mutant | -9/Materials Resources | -11 -10 -9 ----------- Run | Jun Mat Mat Matter Collected 630 | 285 345 . Remotely . | . . . Salvage Created 504 | 59 318 127 Parts 44 | . 31 13 Haulers Intercepted 1 | . 1 . Recyclers Shooed 3 | . 2 1 Parts Field Recycled . | . . . Retrieved Matter . | . . . Parts Self-Destructed . | . . . Prevented . | . . . Kills | -11 -10 -9 ------- Run | Jun Mat Mat Combat Hostiles Destroyed 11 | . 9 2 Guns 11 | . 9 2 Classes Destroyed 8 | 1 6 1 Worker 2 | . 1 1 Hauler 1 | . 1 . Recycler 2 | 1 1 . Operator 1 | . 1 . Watcher 1 | . 1 . Swarmer 8 | . 8 . Grunt 1 | . 1 . Sentry 2 | . . 2 Best Kill Streak 3 | 1 3 3 Combat Bots Only 3 | . 3 1 Max Kills in Single Turn 2 | 1 2 1 Gunslinging 1 | . 1 . Exploded . | . . . Melee . | . . . Uniques/NPCs Destroyed . | . . . Combat | -11 -10 -9 -------- Run | Jun Mat Mat Damage Taken 921 | . 462 459 Core 214 | . 73 141 Absorbed by Shields . | . . . Redirected to Shielding 4 | . . 4 Regen/Repaired (Parts) 59 | . 59 . Core Remaining (%) 85 | 100 70 . Volleys Fired 92 | 4 71 17 Largest 2 | 2 2 2 Hottest 40 | 40 40 40 Shots Fired 181 | 8 142 31 Gun 181 | 8 142 31 Cannon . | . . . Launcher . | . . . Special . | . . . Kinetic 181 | 8 142 31 Thermal . | . . . Explosive . | . . . Electromagnetic . | . . . Robot Hit Streak 14 | 6 5 14 Robot Miss Streak 4 | 2 4 3 Penetration Max . | . . . Secondary Targets 2 | . 2 . Max Gunslinging Chain 1 | . 1 . Shots Hit Robots 108 | 6 78 24 Core Hits 37 | 2 28 7 Critical Kills . | . . . Critical Parts Destroyed . | . . . Critical Strikes . | . . . Melee Attacks . | . . . Impact . | . . . Slashing . | . . . Piercing . | . . . Sneak Attacks . | . . . Combat Hostiles . | . . . Follow-up Attacks . | . . . Damage Inflicted 1140 | 60 820 260 Guns 1140 | 60 820 260 Cannons . | . . . Explosions . | . . . Melee . | . . . Ramming . | . . . Kinetic 1140 | 60 820 260 Thermal . | . . . Explosive . | . . . Electromagnetic . | . . . Impact . | . . . Slashing . | . . . Piercing . | . . . Highest Corruption . | . . . Average Corruption . | . . . Corruption Purged . | . . . Corruption Blocked . | . . . Overload Shots . | . . . Overflow Damage . | . . . Projectiles . | . . . Explosions . | . . . Melee . | . . . Knockbacks . | . . . Impact . | . . . Kinetic . | . . . Secondary . | . . . Self-Inflicted Damage . | . . . Shots . | . . . Rammed . | . . . Targets Rammed . | . . . Kicked . | . . . Crushed . | . . . Highest Temperature 6 | . 6 6 Average Temperature 5 | . 6 4 Received Heat Transfer 147 | . 42 105 Siege Activations . | . . . Robots Corrupted . | . . . Combat Hostiles . | . . . Parts Fried . | . . . Impact Corruptions . | . . . Robots Melted . | . . . Combat Hostiles . | . . . Parts Melted . | . . . Heat Transferred . | . . . Parts Sabotaged . | . . . Parts Stolen . | . . . Parts Stripped . | . . . Power Chain Reactions . | . . . Missiles Intercepted . | . . . Alert | -11 -10 -9 ------- Run | Jun Mat Mat Peak Influence 208 | 5 208 105 Initial 61 | . 3 61 Average 77 | . 90 69 Maximum Alert Level 1 | . 1 . Low Security (%) 99 | 100 99 100 Level 1 . | . . . Level 2 . | . . . Level 3 . | . . . Level 4 . | . . . Level 5 . | . . . High Security . | . . . Max Security . | . . . Squads Dispatched 2 | . 1 1 Investigation . | . . . Extermination . | . . . Reinforcement 2 | . 1 1 Assault . | . . . Garrison . | . . . Intercept . | . . . Searches Triggered . | . . . Construction Impeded . | . . . Haulers Reinforced . | . . . Active Scanning Responses . | . . . Cargo Convoy Interrupts . | . . . Stealth | -11 -10 -9 --------- Run | Jun Mat Mat Distress Signals 1 | . 1 . Communications Jammed . | . . . Distress Signals . | . . . Times Spotted 31 | . 20 11 Peak Tracking Total 9 | . 3 9 Tactical Retreats 1 | . 1 . Traps | -11 -10 -9 ------- Run | Jun Mat Mat Traps Triggered . | . . . Indirectly . | . . . Trap Hack Attempts . | . . . Triggered . | . . . Disarmed . | . . . Reprogrammed . | . . . Reused . | . . . Traps Extracted . | . . . Installed . | . . . Triggered . | . . . Machines | -11 -10 -9 ---------- Run | Jun Mat Mat Machines Disabled 1 | . 1 . Max in Single Turn 1 | . 1 . Machines Repaired . | . . . Machines Sabotaged . | . . . Overloaded Fab Kills . | . . . Hacking | -11 -10 -9 --------- Run | Jun Mat Mat Machines Accessed 3 | . 1 2 Terminals 2 | . . 2 Fabricators . | . . . Repair Stations 1 | . 1 . Recycling Units . | . . . Scanalyzers . | . . . Garrison Access . | . . . Total Hacks 6 | . 2 4 Successful 3 | . 2 1 Failed 3 | . . 3 Catastrophic . | . . . Database Lockouts . | . . . Manual . | . . . Terminals 4 | . . 4 Fabricators . | . . . Repair Stations 2 | . 2 . Recycling Units . | . . . Scanalyzers . | . . . Garrison Access . | . . . Terminal Hacks 1 | . . 1 Locate Traps 1 | . . 1 Fabricator Hacks . | . . . Repair Station Hacks 2 | . 2 . Scan Component 1 | . 1 . Repair 1 | . 1 . Recycling Unit Hacks . | . . . Scanalyzer . | . . . Garrison Access Hacks . | . . . Unauthorized Hacks . | . . . Terminals . | . . . Fabricators . | . . . Repair Stations . | . . . Recycling Units . | . . . Scanalyzers . | . . . Garrison Access . | . . . Data Cores Recovered . | . . . Used . | . . . Hacking Detections 3 | . 1 2 Full Trace Events . | . . . Feedback Events . | . . . Feedback Blocked . | . . . Robot Schematics Acquired . | . . . Robots Built . | . . . Authchips . | . . . Time . | . . . Total Robot Build Rating . | . . . Part Schematics Acquired . | . . . Parts Built . | . . . Authchips . | . . . Time . | . . . Total Part Build Rating . | . . . Parts Repaired 1 | . 1 . Time 26 | . 26 . Parts Recycled . | . . . Recycled Matter . | . . . Retrieved Matter . | . . . Retrieved Components . | . . . Parts Scanalyzed . | . . . Part Schematics Acquired . | . . . Parts Damaged . | . . . Bothacking | -11 -10 -9 ------------ Run | Jun Mat Mat Used RIF Installer . | . . . Robots Hacked . | . . . Non-combat . | . . . Combat . | . . . Robot Hacks Applied . | . . . Relay Couplers Released . | . . . Fabnet Peak Effective % . | . . . Robots Rewired . | . . . Allies Hacked . | . . . Hacks Repelled . | . . . Allies | -11 -10 -9 -------- Run | Jun Mat Mat Total Allies . | . . . Largest Group . | . . . Highest-Rated Group . | . . . Highest-Rated Ally . | . . . Total Orders . | . . . Ally Attacks . | . . . Total Damage . | . . . Kills . | . . . Allies Corrupted . | . . . Allies Melted . | . . . Intel | -11 -10 -9 ------- Run | Jun Mat Mat Robot Analysis Total . | . . . Derelict Logs Recovered . | . . . Drone Launches . | . . . Drone Recoveries . | . . . Exploration | -11 -10 -9 ------------- Run | Jun Mat Mat Turns Passed 1048 | 109 758 181 Spaces Moved 634 | 85 442 107 Core 27 | 27 . . Treads . | . . . Legs 607 | 58 442 107 Wheels . | . . . Hover . | . . . Flight . | . . . Fastest Speed 50 | 50 120 120 Average Speed 118 | 97 122 121 Slowest Speed 190 | 120 190 190 Overloaded Moves . | . . . Propulsion Burnouts . | . . . Robots Hopped . | . . . Cave-ins Triggered . | . . . Exploration Rate (%) 17 | 5 37 10 Regions Visited 2 Branch Regions . Pre-discovered Areas . | . . . Known Exits Taken . | . . . Unknown Exits Taken 2 | 1 1 . Scrap Searched . | . . . Spaces Dug . | . . . Terrain Destroyed . | . . . Melee . | . . . Projectile . | . . . AOE . | . . . Terrain Rammed . | . . . Walls Destroyed . | . . . Machines Disabled . | . . . Actions | -11 -10 -9 --------- Run | Jun Mat Mat Total 765 | 103 532 130 Wait . | . . . Move 632 | 84 441 107 Hop . | . . . Pick Up 22 | 8 10 4 Fast Attach . | . . . Attach 10 | 6 2 2 Detach . | . . . Swap 5 | 1 4 . Drop 4 | . 4 . Fire 92 | 4 71 17 Melee . | . . . Ram . | . . . Kick . | . . . Crush . | . . . Escape Stasis . | . . . Rewire . | . . . Trap . | . . . Miscellaneous . | . . . Route ------- -11/Junkyard -10/Materials -9/Materials History --------- Turn | Location | Event 9 | -11/Junkyard | Discovered new exit (range 16) 110 | -11/Junkyard | Entered Materials 301 | -10/Materials | Build established: Mutant 439 | -10/Materials | Repaired Aluminum Leg 674 | -10/Materials | Discovered new exit (range 15) 868 | -10/Materials | Entered another Materials area 868 | -9/Materials | Evolved 2 slots: Propulsion x1, Utility x1 1049 | -9/Materials | Self-destructed Last Messages --------------- 01016_ U-05 Engineer destroyed. 01018_ K-01 Serf collects debris. 01019_ Y-45 Defender destroyed. 01021_ K-01 Serf collects debris. 01025_ R-06 Scavenger collects Lgt. Armor Plating. 01026_ K-01 Serf collects debris. 01028_ ALERT: Hostiles spotted, dispatching reinforcements to Terminal M004. 01028_ R-06 Scavenger collects Wheel. 01028_ K-01 Serf destroyed. 01030_ R-06 Scavenger collects Wheel. 01031_ Aluminum Leg destroyed. 01032_ R-06 Scavenger collects Structural Scanner. 01033_ R-06 Scavenger collects Lgt. Ion Engine. 01036_ R-06 Scavenger collects Heat Sink. 01039_ Assault Rifle destroyed. 01043_ Lgt. Assault Rifle destroyed. 01043_ Y-45 Defender destroyed. 01048_ R-06 Scavenger collects Med. Matter Pod. 01049_ M-13 Machinist repairs Flight Unit. Map ----- +----------------------------------------------------+ | ?????????????????????????????????????????????????? | | ?????????????????????????????????????????????????? | | ?????????????????????????????????????????????????? | | ?????????????????????????????????????????????????? | | ?????????????????????????????????????????????????? | | ?????????????????????????????????????????????????? | | ?????????????????????????????????????????????????? | | ?????????????????????????????????????????????????? | | ?????????????????????????????????????????????????? | | ?????????????????????????????????????????????????? | | ?????????????????????????????????????????????????? | | ?????????????????????????????????????????????????? | | ???????????????????##????????????????????????????? | | ???????????????????# ????????????????????????????? | | ???????????????????# ???????????????????????????? | | ???????????????????? ???????????????????????????? | | ?????????????????####+#####?????????############## | | ?????????????????? r #?????????# """ # | | ?????????????????# """Y= #?????????# """ ""#!! | | ?????????????????# "R sY #?????????# """ T"#! | | ?????????????????# """!msg#?????????# ""# | | ?????????????????# s = #?????????# ^ #####+ | | ?????????????????# s !#?????????###+####### | | ?????????????????# !!! %########### "" | | ?????????????????# !!! =; T | | ?????????????????# !!!%@########### | | ?????????????????#####=####??????#####+######## | | ?????????????????????#???????????# #??#### | | ?????????????????????????????????# #?????? | | ?????????????????????????????????# """ """ #?????? | | ?????????????????????????????????# """ """ #?????? | | ?????????????????????????????????# """ """ #?????? | | ?????????????????????????????????# """ """ #?????? | | ?????????????????????????????????# """ """ #?????? | | ?????????????????????????????????# #?????? | | ?????????????????????????????????###########?????? | | | | | | | | | | | | | | | | | | | | | | | | | | | | | +----------------------------------------------------+ Best States ------------- Heat Dissipation 28 Energy Generation 10 Energy Capacity 250 Matter Stores 300 Matter Capacity 300 Sight Range 16 Terrain Scan Density 10 Additional Mass Support 6 Utility Shielding 33 Evasion (%) 55 Item Schematics ----------------- None Robot Schematics ------------------ None Fabricated ------------ Nothing Alien Tech Used ----------------- None Achievements -------------- None Challenges ------------ None Game ------ Seed ImpulseUltimateMagmablaster Manual? 0 Play Time 00:10:19 Cumulative 13.6 hours Start 2023.05.29 @ 23:30:26 End 2023.05.29 @ 23:39:06 Sessions 1 Manual Loads 0 Difficulty Rogue Special Mode None Game No. 8 Rogue 7 Adventurer 1 Explorer 0 Win Type - Total 1 Types 1/0/0/0/0/0/0/0/0 Lore% 5 Gallery% 23 Achievement% 21 Wizard Run 0 Options --------- ASCII 0 Keyboard 0 Movement Arrows Keybinds 0 Fullscreen 1 Font 18/SmallcapsGlow Map View 76x50 Tactical HUD 1 Map Filters NONE Filters NONE Steam 1 RUN: f99be4ec-f8f9-4640-9673-4d6fc6854769